Cogmind - Beta 17.1 *** ADVENTURER MODE // 2026.08.25 @ 16:48:09 Player: Happytimes Result: Self-destructed Performance ------------- Evolutions (1) 500 Regions Visited (3) 600 Robots Destroyed (9) 45 Value Destroyed (248) 248 Prototype IDs (0) 0 Alien Tech Used (0) 0 Bonus (0) 0 TOTAL SCORE: 1393 Bonus ------- None Cogmind --------- Core Integrity 323/400 Matter 280/300 Energy 265/265 System Corruption 1% Temperature Cool (0) Movement Rolling (100) Location -9/Materials Parts ------- > --- POWER (1) -------- Improved Ion Engine > --- PROPULSION (3) --- Compact Wheel > --- UTILITY (3) ------ Small Storage Unit > --- WEAPON (2) ------- Mini Grenade Launcher > --- INVENTORY (8) ---- Signal Interpreter Bomb Drone Bay EM Pulse Gun Assault Rifle Peak State ------------ > --- POWER ------------ Light Ion Engine > --- PROPULSION ------- Wheel Compact Wheel Compact Wheel > --- UTILITY ---------- Small Storage Unit Sensor Array Light Armor Plating > --- WEAPON ----------- Assault Rifle Hammer > --- INVENTORY -------- Bomb Drone Bay EM Pulse Gun [Rating: 10] Favorites ----------- Power Light Ion Engine Engine Light Ion Engine Propulsion Compact Wheel Wheel Compact Wheel Utility Small Storage Unit Device Sensor Array Storage Small Storage Unit Protection Light Armor Plating Weapon Assault Rifle Energy Gun EM Pulse Gun Ballistic Gun Assault Rifle Launcher Mini Grenade Launcher Impact Weapon Hammer Build | -11 -10 -10 -9 ------- Run | Yrd Mat Min Mat Slots Evolved 2 | . . . 2 Power . | . . . . Propulsion 1 | . . . 1 Utility 1 | . . . 1 Weapon . | . . . . Parts Attached 14 | 6 1 . 7 Power 2 | 1 . . 1 Engine 2 | 1 . . 1 Core . | . . . . Reactor . | . . . . Propulsion 5 | 2 . . 3 Treads . | . . . . Leg . | . . . . Wheel 5 | 2 . . 3 Hover . | . . . . Flight . | . . . . Utility 3 | 1 1 . 1 Device 1 | . . . 1 Storage 1 | 1 . . . Processor . | . . . . Hackware . | . . . . Protection 1 | . 1 . . Artifact . | . . . . Weapon 4 | 2 . . 2 Energy Gun 1 | 1 . . . Energy Cannon . | . . . . Ballistic Gun 1 | 1 . . . Ballistic Cannon . | . . . . Launcher 1 | . . . 1 Special Weapon . | . . . . Impact Weapon 1 | . . . 1 Slashing Weapon . | . . . . Piercing Weapon . | . . . . Special Melee Weapon . | . . . . Unidentified Prototypes . | . . . . Parts Lost 7 | . . . 7 Power 1 | . . . 1 Propulsion 3 | . . . 3 Utility 2 | . . . 2 Weapon 1 | . . . 1 Highest Loss Streak 3 | . . . 3 To Critical Strikes . | . . . . Average Backups 2 | 1 . . 3 Power . | . . . . Propulsion . | . . . . Utility 1 | . . . 1 Weapon . | . . . 1 Tool/Special . | . . . . Unused Backups 4 | . . . 4 Power . | . . . . Propulsion 2 | . . . 2 Utility 2 | . . . 2 Weapon . | . . . . Tool/Special . | . . . . Average Slot Usage (%) 86 | . 91 100 82 Engine 11 | . 14 14 10 Wheel 28 | . 28 28 28 Device 4 | . . . 5 Storage 11 | . 14 14 11 Protection 6 | . 6 14 4 Energy Gun 5 | . 14 14 2 Ballistic Gun 10 | . 14 14 9 Impact Weapon 6 | . . . 8 Peak Build Rating 10 | 6 7 8 10 Average Rating 8 | 3 6 7 9 On Entrance 5 | . 6 7 8 Avg Prop Armor Cover (%) . | . . . . Naked Turns . | . . . . Heaviest Build 17 | 12 15 15 17 Greatest Support 42 | 26 26 26 42 Greatest Overweight (x) 1 | . . . 1 Average Overweight (x) . | . . . . Largest Inventory Capacity 8 | 8 8 8 8 Average Capacity 7 | 6 8 8 8 Most Carried 6 | 5 1 2 6 Average Carried 3 | 1 . . 4 Final Capacity 8 | 8 8 8 8 Final Carried 5 | . . 2 5 Class Distribution -------------------- 100% | Mutant Dominant Class ---------------- Mutant | -10/Materials Mutant | -10/Mines Mutant | -9/Materials Resources | -11 -10 -10 -9 ----------- Run | Yrd Mat Min Mat Matter Collected 335 | 40 . 28 267 Remotely . | . . . . Salvage Created 374 | . . 28 346 Parts 20 | . . 3 17 Haulers Intercepted . | . . . . Recyclers Shooed . | . . . . Parts Field Recycled . | . . . . Retrieved Matter . | . . . . Parts Self-Destructed . | . . . . Prevented . | . . . . Parts Restored . | . . . . Kills | -11 -10 -10 -9 ------- Run | Yrd Mat Min Mat Combat Hostiles Destroyed 7 | . . . 7 Guns 2 | . . . 2 AOE 2 | . . . 2 Classes Destroyed 6 | . . 1 5 Tunneler 1 | . . 1 . Recycler 1 | . . . 1 Swarmer 2 | . . . 2 Grunt 1 | . . . 1 Brawler 1 | . . . 1 Sentry 3 | . . . 3 Best Kill Streak 3 | . . 1 3 Combat Bots Only 2 | . . . 2 Max Kills in Single Turn 2 | . . 1 2 Gunslinging . | . . . . Exploded 2 | . . . 2 Melee . | . . . . Uniques/NPCs Destroyed . | . . . . Combat | -11 -10 -10 -9 -------- Run | Yrd Mat Min Mat Hostile Shots Fired 73 | . 11 . 62 Missed 14 | . 2 . 12 Hits 59 | . 9 . 50 Melee 2 | . . . 2 Projectile 57 | . 9 . 48 Critical Strikes 4 | . . . 4 Damage Taken 663 | . 59 16 588 Core 87 | . . 10 77 Absorbed by Shields . | . . . . Ignored by Resistances 183 | . 18 . 165 Core Remaining (%) 98 | 100 . 96 . Volleys Fired 11 | . . 1 10 Largest 2 | . . 2 2 Hottest 60 | . . 60 60 Shots Fired 20 | . . 2 18 Gun 18 | . . 2 16 Cannon . | . . . . Launcher 2 | . . . 2 Special . | . . . . Kinetic 9 | . . 1 8 Thermal . | . . . . Explosive 2 | . . . 2 Electromagnetic 9 | . . 1 8 Robot Hit Streak 15 | . . 1 15 Robot Miss Streak . | . . . . Penetration Max . | . . . . Secondary Targets . | . . . . Shots Hit Robots 38 | . . 1 37 Core Hits 10 | . . 1 9 Critical Kills . | . . . . Critical Parts Destroyed 4 | . . . 4 Critical Strikes 4 | . . . 4 Smash 4 | . . . 4 Melee Attacks 25 | . . . 25 Impact 25 | . . . 25 Slashing . | . . . . Piercing . | . . . . Sneak Attacks 1 | . . . 1 Combat Hostiles . | . . . . Follow-up Attacks . | . . . . Damage Inflicted 906 | . . 24 882 Guns 169 | . . 12 157 Cannons . | . . . . Explosions 169 | . . . 169 Melee 551 | . . . 551 Ramming 17 | . . 12 5 Kinetic 60 | . . . 60 Thermal . | . . . . Explosive 169 | . . . 169 Electromagnetic 109 | . . 12 97 Impact 551 | . . . 551 Slashing . | . . . . Piercing . | . . . . Highest Corruption 1 | . . . 1 Average Corruption 1 | . . . 1 Corruption Purged . | . . . . Corruption Blocked . | . . . . Effects 2 | . . . 2 Matter Fused 1 | . . . 1 Data Loss (minor) 1 | . . . 1 Overload Shots . | . . . . Overflow Damage 123 | . . . 123 Projectiles . | . . . . Explosions 7 | . . . 7 Melee 116 | . . . 116 Knockbacks . | . . . . Impact . | . . . . Kinetic . | . . . . Secondary . | . . . . Self-Inflicted Damage 36 | . . 6 30 Shots 1 | . . . 1 Rammed 2 | . . 1 1 Targets Rammed 2 | . . 1 1 Kicked . | . . . . Crushed . | . . . . Highest Temperature 20 | . . 9 20 Average Temperature 6 | . . 6 7 Received Heat Transfer 276 | . . . 276 Siege Activations . | . . . . Martial Activations . | . . . . Shielding Activations . | . . . . Robots Disrupted . | . . . . Combat Hostiles . | . . . . Robots Corrupted 3 | . . . 3 Combat Hostiles 3 | . . . 3 Parts Fried 5 | . . . 5 Impact Corruptions 6 | . . . 6 Robots Melted . | . . . . Combat Hostiles . | . . . . Parts Melted . | . . . . Heat Transferred . | . . . . Parts Sabotaged . | . . . . Parts Stolen . | . . . . Parts Stripped . | . . . . Power Chain Reactions . | . . . . Alert | -11 -10 -10 -9 ------- Run | Yrd Mat Min Mat Maximum Alert Level . | . . . . Low Security (%) 100 | 100 100 100 100 Level 1 . | . . . . Level 2 . | . . . . Level 3 . | . . . . Level 4 . | . . . . Level 5 . | . . . . High Security . | . . . . Max Security . | . . . . Peak Influence 74 | . 15 9 74 Initial 4 | . . 4 . Average 13 | . . 1 18 Influence Increases 273 | . 15 5 253 Destroy 0b10 Robot/C 140 | . . . 140 Destroy 0b10 Robot/NC 10 | . . 5 5 Destroy Leader 40 | . . . 40 Successful Hack 4 | . . . 4 Disable Machine 9 | . . . 9 Destroy Structure 25 | . . . 25 Lose Combat Pursuer 45 | . 15 . 30 Influence Decreases 229 | . . 20 209 Entered New Map 11 | . . 11 . Time Decay 149 | . . 9 140 Lost Part 59 | . . . 59 Purge Threat 10 | . . . 10 Squads Dispatched 1 | . . . 1 Investigation . | . . . . Extermination . | . . . . Reinforcement 1 | . . . 1 Assault . | . . . . Garrison . | . . . . Intercept . | . . . . Searches Triggered . | . . . . Construction Impeded . | . . . . Haulers Reinforced . | . . . . Active Scanning Responses . | . . . . Cargo Convoy Interrupts . | . . . . Stealth | -11 -10 -10 -9 --------- Run | Yrd Mat Min Mat Distress Signals 3 | . 1 . 2 Communications Jammed . | . . . . Distress Signals . | . . . . Times Spotted 16 | . 4 . 12 Peak Tracking Total 5 | . 5 . 5 Tactical Retreats 2 | . 1 . 1 Traps | -11 -10 -10 -9 ------- Run | Yrd Mat Min Mat Traps Triggered . | . . . . Indirectly . | . . . . Trap Hack Attempts . | . . . . Triggered . | . . . . Disarmed . | . . . . Reprogrammed . | . . . . Reused . | . . . . Traps Extracted . | . . . . Installed . | . . . . Triggered . | . . . . Machines | -11 -10 -10 -9 ---------- Run | Yrd Mat Min Mat Machines Disabled 1 | . . . 1 Max in Single Turn 1 | . . . 1 Machines Repaired . | . . . . Machines Dismantled . | . . . . Machines Sabotaged . | . . . . Overloaded Fab Kills . | . . . . Hacking | -11 -10 -10 -9 --------- Run | Yrd Mat Min Mat Machines Accessed 4 | . . 1 3 Terminals 2 | . . . 2 Fabricators . | . . . . Repair Stations 1 | . . . 1 Recycling Units . | . . . . Scanalyzers . | . . . . Garrison Access . | . . . . Total Hacks 4 | . . 1 3 Successful 4 | . . 1 3 Failed . | . . . . Catastrophic . | . . . . Database Lockouts . | . . . . Manual . | . . . . Terminals 2 | . . . 2 Fabricators . | . . . . Repair Stations 1 | . . . 1 Recycling Units . | . . . . Scanalyzers . | . . . . Garrison Access . | . . . . Terminal Hacks 3 | . . 1 2 Open Door 1 | . . 1 . Unreport Threat 1 | . . . 1 Zone Layout 1 | . . . 1 Fabricator Hacks . | . . . . Repair Station Hacks 1 | . . . 1 Scan Component 1 | . . . 1 Recycling Unit Hacks . | . . . . Scanalyzer . | . . . . Garrison Access Hacks . | . . . . Unauthorized Hacks . | . . . . Terminals . | . . . . Fabricators . | . . . . Repair Stations . | . . . . Recycling Units . | . . . . Scanalyzers . | . . . . Garrison Access . | . . . . Data Cores Recovered . | . . . . Used . | . . . . Hacking Detections 1 | . . . 1 Full Trace Events . | . . . . Feedback Events . | . . . . Feedback Blocked . | . . . . Robot Schematics Acquired . | . . . . Robots Built . | . . . . Authchips . | . . . . Time . | . . . . Total Robot Build Rating . | . . . . Part Schematics Acquired . | . . . . Parts Built . | . . . . Authchips . | . . . . Time . | . . . . Total Part Build Rating . | . . . . Part Studies Acquired . | . . . . Parts Repaired . | . . . . Time . | . . . . Parts Recycled . | . . . . Recycled Matter . | . . . . Retrieved Matter . | . . . . Retrieved Components . | . . . . Parts Scanalyzed . | . . . . Part Schematics Acquired . | . . . . Parts Damaged . | . . . . Bothacking | -11 -10 -10 -9 ------------ Run | Yrd Mat Min Mat Used RIF Installer . | . . . . Robots Hacked . | . . . . Non-combat . | . . . . Combat . | . . . . Robot Hacks Applied . | . . . . Relay Couplers Released . | . . . . Fabnet Peak Effective % . | . . . . Robots Rewired . | . . . . Allies Hacked . | . . . . Hacks Repelled . | . . . . Allies | -11 -10 -10 -9 -------- Run | Yrd Mat Min Mat Total Allies . | . . . . Largest Group . | . . . . Highest-Rated Group . | . . . . Highest-Rated Ally . | . . . . Total Orders . | . . . . Ally Attacks . | . . . . Total Damage . | . . . . Kills . | . . . . Allies Corrupted . | . . . . Allies Melted . | . . . . Intel | -11 -10 -10 -9 ------- Run | Yrd Mat Min Mat Active Infowar (turns) 197 | . . . 197 Sensors 197 | . . . 197 Robot Analysis Total . | . . . . Derelict Logs Recovered 2 | . . 2 . Drone Launches . | . . . . Drone Recoveries . | . . . . Exploration | -11 -10 -10 -9 ------------- Run | Yrd Mat Min Mat Turns Passed 532 | 34 55 57 386 Spaces Moved 435 | 30 59 58 288 Core 12 | 12 . . . Treads . | . . . . Legs . | . . . . Wheels 423 | 18 59 58 288 Hover . | . . . . Flight . | . . . . Fastest Speed 50 | 50 90 90 90 Average Speed 90 | 74 90 90 92 Slowest Speed 100 | 90 90 90 100 Overloaded Moves . | . . . . Propulsion Burnouts . | . . . . Robots Hopped . | . . . . Potential Cave-ins . | . . . . Cave-ins Triggered . | . . . . Exploration Rate (%) 16 | 3 25 11 27 Regions Visited 3 Branch Regions 1 Pre-discovered Areas . | . . . . Known Exits Taken . | . . . . Unknown Exits Taken 3 | 1 1 1 . Scrap Searched . | . . . . Spaces Dug . | . . . . Terrain Destroyed 21 | . . . 21 Melee . | . . . . Projectile . | . . . . AOE 21 | . . . 21 Terrain Rammed . | . . . . Walls Destroyed . | . . . . Machines Disabled . | . . . . Actions | -11 -10 -10 -9 --------- Run | Yrd Mat Min Mat Total 505 | 41 60 60 344 Wait . | . . . . Move 432 | 29 58 57 288 Hop . | . . . . Pick Up 18 | 6 1 1 10 Fast Attach . | . . . . Attach 11 | 6 1 . 4 Detach . | . . . . Swap 3 | . . . 3 Drop 3 | . . . 3 Fire 11 | . . 1 10 Melee 25 | . . . 25 Ram 2 | . . 1 1 Kick . | . . . . Crush . | . . . . Escape Stasis . | . . . . Rewire . | . . . . Trap . | . . . . Miscellaneous . | . . . . Route ------- -11/Scrapyard -10/Materials -10/Mines -9/Materials History --------- Turn | Location | Event 4 | -11/Scrapyard | Discovered new exit (range 16) 35 | -11/Scrapyard | Entered Materials 59 | -10/Materials | Discovered new exit (range 16) 90 | -10/Materials | Entered Mines 111 | -10/Mines | Discovered new exit (range 8) 118 | -10/Mines | Found the Drone Emporium 121 | -10/Mines | Learned Materials emergency access door positions 122 | -10/Mines | Found Prototype Device 134 | -10/Mines | Learned Materials stockpile data 147 | -10/Mines | Entered Materials 147 | -9/Materials | Evolved 2 slots: Propulsion x1, Utility x1 313 | -9/Materials | Build established: Mutant 533 | -9/Materials | Self-destructed Last Messages --------------- ally. 00519_ U-05 Engineer builds a Wall. 00521_ Y-45 Defender suffers critical hit (Smash). 00521_ Destroyed Lgt. Treads. 00521_ Y-45 Defender system corrupted by crushing effect. 00522_ U-05 Engineer builds a Wall. 00526_ U-05 Engineer lays Concrete. 00527_ Com. Wheel destroyed. 00527_ U-05 Engineer lays Concrete. 00528_ U-05 Engineer builds a Wall. 00530_ U-05 Engineer lays Concrete. 00530_ Hammer destroyed. 00530_ U-05 Engineer lays Concrete. 00531_ U-05 Engineer builds a Wall. 00532_ Slammed into Y-45 Defender. 00532_ U-05 Engineer lays Concrete. 00532_ W-16 Scout distress signal alerts nearby ally. Map ----- +----------------------------------------------------+ | ?????????????????????????????????????????????????? | | ?????????????????????????????????????????????????? | | ???????????????????????? ??????????????????????? | | ???????????????????????# ??????????????????????? | | ???????????????????????# ??????????????????? ### | | ???????????????????????# #?????????????????? | | ???????????????????????# #?????????????????? | | ???????????????????????# #?????????????????? | | ???????????????????????# #?????????????????????? | | ???????????????????????# ##????????????????????? | | ???????????????????????# ????????????????????? | | ???????????????????????# ???????????????????### | | ?????????????????####### ???????????????????# | | ????????????????## # # ########?####+#####?#"" | | ?????????????# ## # # [ #?# #?#"R | | ?????????????? %* #uuu# #?# #?#"" | | ????????????????#""" [ # ===#?# ### | | ???????????????? """ m ===#?# """ + + | | ????????????????#""" w ===### """"" ### | | ????????????????# + + """"" #?# | | ????????????# ??## ## ####+#### """"" #?### | | ???????????## ####### #???????# """ #???? | | ?????????? #???????# #???? | | ?????????? #???????##########???? | | ?????????? #????????????????????? | | ???????????###+######## @Y #????????????????????? | | ??????????????????????# #####????????????????????? | | ??????????????????????# ?????????????????????????? | | ??????????????????????# ?????????????????????????? | | ??????????????????????# ?????????????????????????? | | ??????????????????????# ?????????????????????????? | | ??????????????????????# ?????????????????????????? | | ??????????????????????#??????????????????????????? | | ?????????????????????????????????????????????????? | | ?????????????????????????????????????????????????? | | ?????????????????????????????????????????????????? | | ?????????????????????????????????????????????????? | | ?????????????????????????????????????????????????? | | ?????????????????????????????????????????????????? | | ?????????????????????????????????????????????????? | | ?????????????????????????????????????????????????? | | ?????????????????????????????????????????????????? | | ?????????????????????????????????????????????????? | | ?????????????????????????????????????????????????? | | ?????????????????????????????????????????????????? | | ?????????????????????????????????????????????????? | | ?????????????????????????????????????????????????? | | ?????????????????????????????????????????????????? | | ?????????????????????????????????????????????????? | | ?????????????????????????????????????????????????? | +----------------------------------------------------+ Best States ------------- Heat Dissipation 28 Energy Generation 12 Energy Capacity 265 Matter Stores 300 Matter Capacity 300 Sight Range 16 Robot Scan Range 14 Terrain Scan Density 10 Armor Coverage 150 Resistance: KI 20 Resistance: TH 20 Resistance: EX 20 Resistance: EM 20 Resistance: I 20 Resistance: S 20 Resistance: P 20 Evasion (%) 50 Offensive Hacking 10 Item Schematics ----------------- None Robot Schematics ------------------ None Fabricated ------------ Nothing Repaired ---------- Nothing Studied --------- None Alien Tech Used ----------------- None Achievements -------------- For Emergencies Only Challenges ------------ None Game ------ Seed InsulationChainTearclaws Manual? 0 Play Time 00:07:42 Cumulative 61.2 hours Start 2026.08.25 @ 16:39:19 End 2026.08.25 @ 16:48:09 Sessions 1 Manual Loads 0 Difficulty Adventurer Special Mode None Game No. 210 Rogue 201 Adventurer 9 Explorer 0 Win Type - Total 0 Types 0/0/0/0/0/0/0/0/0/0 Lore% 24 Gallery% 38 Achievement% 22 Wizard Run 0 Options --------- Layout 1 ASCII 0 Keyboard 0 Movement Mouse Keybinds 0 Fullscreen 1 Font 24/Smallcaps Map View 50x40 Zoom Use 0% Tactical HUD 1 Map Filters NONE Filters NONE Steam 1 RUN: 5896a346-9418-4700-a696-52217adc0bac